fUSD/lending_fUSD_20260430
["ID","MTS","AMOUNT","RATE_DAILY","PERIOD"]
[421370245,1777513846000,-5627.51599743,0.00039482,30]
[421370239,1777513846000,-9050.99,0.000393,7]
[421370240,1777513846000,-250.0,0.00039327,59]
[421370246,1777513846000,-150.0,0.00039482,30]
[421370249,1777513846000,-150.0,0.00039579,2]
[421370241,1777513846000,-405.92,0.00039433,30]
[421370237,1777513846000,-232.26,0.00039,75]
[421370236,1777513846000,-150.0,0.00039,5]
[421370238,1777513846000,-6037.0,0.00039194,2]
[421370242,1777513846000,-150.0,0.00039482,30]
[421370235,1777513846000,-3883.92,0.000389,30]
[421370244,1777513846000,-150.0,0.00039482,30]
[421370248,1777513846000,-619.09,0.00039488,120]
[421370247,1777513846000,-916.66641336,0.00039482,30]
[421370251,1777513846000,-619.09,0.00039588,120]
[421370259,1777513846000,-4009.44487228,0.00039693,2]
[421370262,1777513846000,-619.09,0.00039788,120]
[421370261,1777513846000,-17085.1854,0.00039788,30]
[421370250,1777513846000,-62500.0,0.0003958,30]
[421370243,1777513846000,-553.39089062,0.00039482,30]
[421370280,1777513846000,-500.0,0.0003994,7]
[421370352,1777513846000,-500.0,0.0003994,7]
[421370286,1777513846000,-500.0,0.0003994,7]
[421370333,1777513846000,-500.0,0.0003994,7]
[421370332,1777513846000,-500.0,0.0003994,7]
[421370326,1777513846000,-500.0,0.0003994,7]
[421370329,1777513846000,-500.0,0.0003994,7]
[421370324,1777513846000,-500.0,0.0003994,7]
[421370330,1777513846000,-500.0,0.0003994,7]
[421370327,1777513846000,-500.0,0.0003994,7]
[421370325,1777513846000,-500.0,0.0003994,7]
[421370328,1777513846000,-500.0,0.0003994,7]
[421370331,1777513846000,-500.0,0.0003994,7]
[421370335,1777513846000,-500.0,0.0003994,7]
[421370344,1777513846000,-500.0,0.0003994,7]
[421370343,1777513846000,-500.0,0.0003994,7]
[421370323,1777513846000,-500.0,0.0003994,7]
[421370345,1777513846000,-500.0,0.0003994,7]
[421370334,1777513846000,-500.0,0.0003994,7]
[421370346,1777513846000,-500.0,0.0003994,7]
[421370336,1777513846000,-500.0,0.0003994,7]
[421370342,1777513846000,-500.0,0.0003994,7]
[421370338,1777513846000,-500.0,0.0003994,7]
[421370337,1777513846000,-500.0,0.0003994,7]
[421370340,1777513846000,-500.0,0.0003994,7]
[421370341,1777513846000,-500.0,0.0003994,7]
[421370283,1777513846000,-500.0,0.0003994,7]
[421370349,1777513846000,-500.0,0.0003994,7]
[421370350,1777513846000,-500.0,0.0003994,7]
[421370348,1777513846000,-631.37,0.0003994,7]
[421370351,1777513846000,-500.0,0.0003994,7]
[421370347,1777513846000,-500.0,0.0003994,7]
[421370322,1777513846000,-500.0,0.0003994,7]
[421370339,1777513846000,-500.0,0.0003994,7]
[421370316,1777513846000,-500.0,0.0003994,7]
[421370321,1777513846000,-500.0,0.0003994,7]
[421370285,1777513846000,-500.0,0.0003994,7]
[421370295,1777513846000,-500.0,0.0003994,7]
[421370293,1777513846000,-500.0,0.0003994,7]
[421370294,1777513846000,-507.04,0.0003994,7]
[421370296,1777513846000,-500.0,0.0003994,7]
[421370303,1777513846000,-500.0,0.0003994,7]
[421370292,1777513846000,-500.0,0.0003994,7]
[421370297,1777513846000,-500.0,0.0003994,7]
[421370298,1777513846000,-500.0,0.0003994,7]
[421370302,1777513846000,-507.15,0.0003994,7]
[421370305,1777513846000,-500.0,0.0003994,7]
[421370304,1777513846000,-500.0,0.0003994,7]
[421370306,1777513846000,-500.0,0.0003994,7]
[421370291,1777513846000,-500.0,0.0003994,7]
[421370308,1777513846000,-500.0,0.0003994,7]
[421370300,1777513846000,-500.0,0.0003994,7]
[421370311,1777513846000,-500.0,0.0003994,7]
[421370313,1777513846000,-500.0,0.0003994,7]
[421370309,1777513846000,-500.0,0.0003994,7]
[421370314,1777513846000,-500.0,0.0003994,7]
[421370318,1777513846000,-500.0,0.0003994,7]
[421370310,1777513846000,-500.0,0.0003994,7]
[421370317,1777513846000,-500.0,0.0003994,7]
[421370319,1777513846000,-500.0,0.0003994,7]
[421370315,1777513846000,-500.0,0.0003994,7]
[421370312,1777513846000,-500.0,0.0003994,7]
[421370320,1777513846000,-500.0,0.0003994,7]
[421370307,1777513846000,-500.0,0.0003994,7]
[421370380,1777513847000,-326.49,0.0004,120]
[421370398,1777513847000,-500.0,0.0004,120]
[421370387,1777513847000,-177.33874535,0.0004,120]
[421370386,1777513847000,-166.0,0.0004,120]
[421370383,1777513847000,-421.43,0.0004,120]
[421370381,1777513847000,-198.43,0.0004,120]
[421370382,1777513847000,-217.0,0.0004,120]
[421370384,1777513847000,-411.90601277,0.0004,120]
[421370385,1777513847000,-2118.86923168,0.0004,120]
[421370390,1777513847000,-154.0,0.0004,120]
[421370388,1777513847000,-150.05445694,0.0004,120]
[421370397,1777513847000,-500.0,0.0004,120]
[421370400,1777513847000,-500.0,0.0004,120]
[421370389,1777513847000,-5000.0,0.0004,2]
[421370401,1777513847000,-500.0,0.0004,120]
[421370393,1777513847000,-500.0,0.0004,120]
[421370391,1777513847000,-3399.62,0.0004,120]
[421370395,1777513847000,-500.0,0.0004,120]
[421370392,1777513847000,-500.0,0.0004,120]
[421370396,1777513847000,-500.0,0.0004,120]
[421370394,1777513847000,-500.0,0.0004,120]
[421370404,1777513847000,-500.0,0.0004,120]
[421370379,1777513847000,-723.99,0.0004,120]
[421370399,1777513847000,-500.0,0.0004,120]
[421370378,1777513847000,-420.54,0.0004,120]
[421370363,1777513847000,-500.0,0.0003994,7]
[421370377,1777513847000,-50150.04,0.0004,7]
[421370413,1777513847000,-1916.41235895,0.00040037,2]
[421370357,1777513847000,-500.0,0.0003994,7]
[421370355,1777513847000,-500.0,0.0003994,7]
[421370353,1777513847000,-500.0,0.0003994,7]
[421370354,1777513847000,-500.0,0.0003994,7]
[421370356,1777513847000,-500.0,0.0003994,7]
[421370360,1777513847000,-398.24,0.0003994,7]
[421370359,1777513847000,-500.0,0.0003994,7]
[421370358,1777513847000,-500.0,0.0003994,7]
[421370362,1777513847000,-500.0,0.0003994,7]
[421370361,1777513847000,-500.0,0.0003994,7]
[421370364,1777513847000,-250.0,0.00039948,68]
[421370372,1777513847000,-11000.0,0.0004,10]
[421370365,1777513847000,-83012.0,0.0003998,15]
[421370373,1777513847000,-161.0,0.0004,120]
[421370374,1777513847000,-981.0,0.0004,120]
[421370370,1777513847000,-500.0,0.0004,120]
[421370368,1777513847000,-24958.0,0.0004,120]
[421370369,1777513847000,-150.0,0.0004,120]
[421370371,1777513847000,-2000.0,0.0004,60]
[421370366,1777513847000,-619.09,0.00039988,120]
[421370367,1777513847000,-505.09075042,0.0004,120]
[421370375,1777513847000,-17704.0,0.0004,60]
[421370376,1777513847000,-10000.0,0.0004,2]
[421370402,1777513847000,-500.0,0.0004,120]
[421370434,1777513847000,-1000.0,0.000403,61]
[421370408,1777513847000,-500.0,0.0004,120]
[421370435,1777513847000,-1000.0,0.000403,91]
[421370436,1777513847000,-35512.0,0.0004032,60]
[421370439,1777513847000,-250.0,0.00040393,75]
[421370441,1777513847000,-1000.0,0.000404,61]
[421370433,1777513847000,-1000.0,0.000403,31]
[421370458,1777513847000,-105564.39218837,0.000406,45]
[421370440,1777513847000,-1000.0,0.000404,31]
[421370442,1777513847000,-1000.0,0.000404,91]
[421370443,1777513847000,-10288.49,0.00040419,120]
[421370445,1777513847000,-902.31160144,0.00040428,2]
[421370450,1777513847000,-1000.0,0.000405,91]
[421370451,1777513847000,-3875.74,0.000405,30]
[421370444,1777513847000,-150.0,0.00040428,2]
[421370452,1777513847000,-800.0,0.000405,120]
[421370453,1777513847000,-161.32962257,0.000405,2]
[421370454,1777513847000,-614.7973207,0.000405,120]
[421370446,1777513847000,-382.11350792,0.0004048,120]
[421370455,1777513847000,-619.09,0.00040588,120]
[421370447,1777513847000,-619.09,0.00040488,120]
[421370448,1777513847000,-1000.0,0.000405,31]
[421370456,1777513847000,-225.28,0.0004059,30]
[421370457,1777513847000,-500.0,0.00040599,120]
[421370406,1777513847000,-500.0,0.0004,120]
[421370438,1777513847000,-619.09,0.00040388,120]
[421370437,1777513847000,-509.0,0.00040353,16]
[421370449,1777513847000,-1000.0,0.000405,61]
[421370430,1777513847000,-1000.0,0.000402,91]
[421370431,1777513847000,-619.09,0.00040288,120]
[421370410,1777513847000,-500.0,0.0004,120]
[421370405,1777513847000,-500.0,0.0004,120]
[421370409,1777513847000,-500.0,0.0004,120]
[421370411,1777513847000,-322.42676057,0.0004,120]
[421370407,1777513847000,-500.0,0.0004,120]
[421370415,1777513847000,-155.79972251,0.00040092,42]
[421370412,1777513847000,-6818.32388375,0.00040037,2]
[421370403,1777513847000,-500.0,0.0004,120]
[421370417,1777513847000,-150.0,0.00040095,120]
[421370426,1777513847000,-150.0,0.00040173,120]
[421370427,1777513847000,-619.09,0.00040188,120]
[421370414,1777513847000,-619.09,0.00040088,120]
[421370428,1777513847000,-1000.0,0.000402,31]
[421370429,1777513847000,-1000.0,0.000402,61]
[421370425,1777513847000,-150.0,0.00040148,120]
[421370424,1777513847000,-300.0,0.00040137,120]
[421370432,1777513847000,-625.30676395,0.0004029,120]
[421370416,1777513847000,-150.0,0.00040095,120]
[421370422,1777513847000,-300.0,0.000401,120]
[421370419,1777513847000,-1000.0,0.000401,61]
[421370420,1777513847000,-1000.0,0.000401,91]
[421370423,1777513847000,-80000.0,0.0004012,60]
[421370418,1777513847000,-1000.0,0.000401,31]
[421370421,1777513847000,-232.26,0.000401,90]
[421370471,1777513848000,-581.75583895,0.000406,45]
[421370474,1777513848000,-17913.04382772,0.000406,45]
[421370473,1777513848000,-477.892,0.00030297,2]
[421370472,1777513848000,-459.37,0.000289,7]
[421370468,1777513848000,-235.59,0.00029638,10]
[421370466,1777513848000,-459.37,0.00028888,2]
[421370462,1777513848000,-459.37,0.00028839,30]
[421370467,1777513848000,-1324.41,0.00029638,10]
[421370463,1777513848000,-459.37,0.00028851,2]
[421370464,1777513848000,-459.37,0.00028863,7]
[421370461,1777513848000,-459.37,0.00028826,7]
[421370460,1777513848000,-459.37,0.00028814,2]
[421370459,1777513848000,-770.45357976,0.000406,45]
[421370469,1777513848000,-587.0,0.000325,30]
[421370465,1777513848000,-459.37,0.00028876,30]
[421370470,1777513848000,-232.10492624,0.000406,45]
[421370484,1777513848000,-294.79568939,0.00028999,2]
[421370477,1777513848000,-459.37,0.00028925,2]
[421370492,1777513848000,-9318.91575526,0.000406,45]
[421370491,1777513848000,-617.33899783,0.000406,45]
[421370490,1777513848000,-1495.0,0.00037994,30]
[421370475,1777513848000,-450.87171231,0.00028912,30]
[421370487,1777513848000,-416.0,0.00033297,2]
[421370488,1777513848000,-416.0,0.00036297,2]
[421370486,1777513848000,-459.37,0.00029023,30]
[421370489,1777513848000,-489.0,0.00037994,30]
[421370482,1777513848000,-459.37,0.00028986,30]
[421370483,1777513848000,-164.57431061,0.00028999,2]
[421370481,1777513848000,-459.37,0.00028974,7]
[421370480,1777513848000,-459.37,0.00028962,2]
[421370478,1777513848000,-459.37,0.00028937,7]
[421370479,1777513848000,-459.37,0.00028949,30]
[421370476,1777513848000,-8.49828769,0.00028912,30]
[421370485,1777513848000,-459.37,0.00029011,7]
[421370493,1777513922000,301.97485523,0.00029851,120]
[421370494,1777513923000,193.64290322,0.00029851,120]
[421370495,1777514676000,1600.0,0.00027923,120]
[421370496,1777514896000,1000.0,0.00027889,120]
[421370499,1777515031000,-199.0,0.00026996,2]
[421370498,1777515031000,-166.66,0.00026855,30]
[421370500,1777515031000,-509.0,0.00027137,2]
[421370502,1777515031000,-564.80387378,0.00027457,2]
[421370501,1777515031000,-166.66,0.0002742,30]
[421370506,1777515031000,-4253.43901135,0.00027457,2]
[421370504,1777515031000,-605.6100191,0.00027457,2]
[421370507,1777515031000,-208.52738905,0.00027845,2]
[421370503,1777515031000,-1420.12167865,0.00027457,2]
[421370508,1777515031000,-525.79675041,0.00027845,2]
[421370505,1777515031000,-805.47043148,0.00027457,2]
[421370514,1777515032000,-485.4185,0.00027927,2]
[421370513,1777515032000,-552.0,0.00027927,2]
[421370512,1777515032000,-958.35718436,0.00027927,2]
[421370510,1777515032000,-200.0,0.00027889,2]
[421370511,1777515032000,-1072.53069806,0.00027927,2]
[421370509,1777515032000,-2130.84077046,0.00027845,2]
[421370590,1777515037000,-166.66,0.00028551,30]
[421370583,1777515037000,-629.949,0.00027927,2]
[421370584,1777515037000,-1301.74461758,0.00027927,2]
[421370585,1777515037000,-212.01772146,0.00027959,2]
[421370586,1777515037000,-1000.0,0.00027971,2]
[421370588,1777515037000,-1220.56473351,0.00028032,2]
[421370599,1777515037000,-316.76,0.00028742,7]
[421370587,1777515037000,-166.66,0.00027986,30]
[421370591,1777515037000,-316.76,0.00028699,2]
[421370598,1777515037000,-314.35,0.00028738,2]
[421370593,1777515037000,-316.76,0.00028709,7]
[421370594,1777515037000,-314.35,0.00028716,7]
[421370592,1777515037000,-314.35,0.00028706,2]
[421370596,1777515037000,-314.35,0.00028727,30]
[421370597,1777515037000,-316.76,0.00028731,2]
[421370595,1777515037000,-316.76,0.0002872,30]
[421370600,1777515037000,-314.35,0.00028749,7]
[421370601,1777515037000,-316.76,0.00028753,30]
[421370589,1777515037000,-150.0,0.00028427,2]
[421370630,1777515038000,-314.35,0.0002891,7]
[421370642,1777515038000,-314.35,0.00028974,7]
[421370649,1777515038000,-316.76,0.00029014,30]
[421370644,1777515038000,-314.35,0.00028985,30]
[421370648,1777515038000,-314.35,0.00029007,7]
[421370634,1777515038000,-314.35,0.00028931,2]
[421370639,1777515038000,-316.76,0.0002896,2]
[421370637,1777515038000,-316.76,0.00028949,30]
[421370633,1777515038000,-316.76,0.00028927,2]
[421370636,1777515038000,-314.35,0.00028942,7]
[421370638,1777515038000,-314.35,0.00028953,30]
[421370645,1777515038000,-316.76,0.00028993,2]
[421370666,1777515038000,-316.76,0.00029069,7]
[421370641,1777515038000,-316.76,0.00028971,7]
[421370647,1777515038000,-316.76,0.00029004,7]
[421370643,1777515038000,-316.76,0.00028982,30]
[421370646,1777515038000,-314.35,0.00028996,2]
[421370651,1777515038000,-316.76,0.00029025,2]
[421370650,1777515038000,-314.35,0.00029017,30]
[421370661,1777515038000,-314.35,0.0002905,30]
[421370659,1777515038000,-316.76,0.00029047,30]
[421370657,1777515038000,-314.35,0.00029039,7]
[421370655,1777515038000,-316.76,0.00029036,7]
[421370663,1777515038000,-316.76,0.00029058,2]
[421370653,1777515038000,-314.35,0.00029028,2]
[421370635,1777515038000,-316.76,0.00028938,7]
[421370668,1777515038000,-314.35,0.00029071,7]
[421370640,1777515038000,-314.35,0.00028964,2]
[421370632,1777515038000,-314.35,0.00028921,30]
[421370613,1777515038000,-316.76,0.00028818,30]
[421370626,1777515038000,-314.35,0.00028888,30]
[421370670,1777515038000,-316.76,0.0002908,30]
[421370606,1777515038000,-314.35,0.00028781,7]
[421370607,1777515038000,-316.76,0.00028786,30]
[421370608,1777515038000,-314.35,0.00028792,30]
[421370602,1777515038000,-314.35,0.00028759,30]
[421370605,1777515038000,-316.76,0.00028775,7]
[421370603,1777515038000,-316.76,0.00028764,2]
[421370609,1777515038000,-316.76,0.00028797,2]
[421370604,1777515038000,-314.35,0.0002877,2]
[421370610,1777515038000,-314.35,0.00028802,2]
[421370612,1777515038000,-314.35,0.00028813,7]
[421370611,1777515038000,-316.76,0.00028807,7]
[421370621,1777515038000,-316.76,0.00028862,2]
[421370615,1777515038000,-316.76,0.00028829,2]
[421370623,1777515038000,-316.76,0.00028873,7]
[421370619,1777515038000,-316.76,0.00028851,30]
[421370618,1777515038000,-314.35,0.00028845,7]
[421370622,1777515038000,-314.35,0.00028867,2]
[421370614,1777515038000,-314.35,0.00028824,30]
[421370616,1777515038000,-314.35,0.00028835,2]
[421370617,1777515038000,-316.76,0.0002884,7]
[421370620,1777515038000,-314.35,0.00028856,30]
[421370624,1777515038000,-314.35,0.00028878,7]
[421370628,1777515038000,-314.35,0.00028899,2]
[421370627,1777515038000,-316.76,0.00028895,2]
[421370625,1777515038000,-316.76,0.00028884,30]
[421370629,1777515038000,-316.76,0.00028906,7]
[421370631,1777515038000,-316.76,0.00028916,30]
[421370671,1777515038000,-314.35,0.00029082,30]
[421370757,1777515038000,-150.0,0.00030423,7]
[421370672,1777515038000,-316.76,0.00029091,2]
[421370743,1777515038000,-606.47608916,0.00029534,81]
[421370745,1777515038000,-150.0,0.00029534,2]
[421370746,1777515038000,-166.66,0.00029682,30]
[421370741,1777515038000,-317.1,0.00029232,7]
[421370749,1777515038000,-150.0,0.00029762,7]
[421370748,1777515038000,-150.0,0.00029762,7]
[421370750,1777515038000,-150.0,0.00029762,7]
[421370751,1777515038000,-150.0,0.00029762,7]
[421370756,1777515038000,-150.0,0.00030423,7]
[421370759,1777515038000,-150.0,0.00030754,7]
[421370753,1777515038000,-150.0,0.00029762,7]
[421370754,1777515038000,-150.0,0.00030092,7]
[421370758,1777515038000,-150.0,0.00030588,7]
[421370755,1777515038000,-200.0,0.00030137,40]
[421370752,1777515038000,-150.0,0.00029762,7]
[421370769,1777515038000,-150.0,0.00031415,7]
[421370665,1777515038000,-314.35,0.0002906,2]
[421370767,1777515038000,-150.0,0.00031415,7]
[421370765,1777515038000,-1989.19062127,0.00031381,86]
[421370762,1777515038000,-150.0,0.00031011,2]
[421370763,1777515038000,-150.0,0.00031084,30]
[421370761,1777515038000,-150.0,0.00030864,7]
[421370766,1777515038000,-1600.0,0.00031413,120]
[421370770,1777515038000,-397.7045119,0.00031644,60]
[421370768,1777515038000,-150.0,0.00031415,7]
[421370764,1777515038000,-150.0,0.00031084,7]
[421370771,1777515038000,-150.0,0.00031746,7]
[421370747,1777515038000,-150.0,0.00029762,7]
[421370737,1777515038000,-314.35,0.00029222,2]
[421370760,1777515038000,-1663.4185447,0.00030766,84]
[421370728,1777515038000,-314.35,0.000292,7]
[421370735,1777515038000,-316.76,0.00029221,2]
[421370676,1777515038000,-314.35,0.00029093,2]
[421370679,1777515038000,-316.76,0.00029102,7]
[421370681,1777515038000,-314.35,0.00029103,7]
[421370684,1777515038000,-316.76,0.00029113,30]
[421370686,1777515038000,-314.35,0.00029114,30]
[421370693,1777515038000,-314.35,0.00029125,2]
[421370690,1777515038000,-316.76,0.00029123,2]
[421370695,1777515038000,-316.76,0.00029134,7]
[421370697,1777515038000,-1899.85,0.00029135,10]
[421370699,1777515038000,-1319.34,0.00029135,10]
[421370702,1777515038000,-314.35,0.00029136,7]
[421370713,1777515038000,-314.35,0.00029157,2]
[421370688,1777515038000,-166.66,0.00029116,30]
[421370706,1777515038000,-316.76,0.00029145,30]
[421370739,1777515038000,-314.35,0.00029232,7]
[421370704,1777515038000,-1583.21,0.00029136,10]
[421370733,1777515038000,-316.76,0.00029211,30]
[421370731,1777515038000,-314.35,0.00029211,30]
[421370726,1777515038000,-316.76,0.00029189,2]
[421370711,1777515038000,-316.76,0.00029156,2]
[421370729,1777515038000,-316.76,0.000292,7]
[421370709,1777515038000,-314.35,0.00029146,30]
[421370724,1777515038000,-314.35,0.00029189,2]
[421370722,1777515038000,-314.35,0.00029179,30]
[421370720,1777515038000,-316.76,0.00029178,30]
[421370717,1777515038000,-314.35,0.00029168,7]
[421370715,1777515038000,-316.76,0.00029167,7]
[421370802,1777515039000,-306.88033801,0.00032429,2]
[421370789,1777515039000,-2933.38779691,0.00032429,2]
[421370796,1777515039000,-2853.77302088,0.00032429,2]
[421370799,1777515039000,-120.60102294,0.00032429,2]
[421370798,1777515039000,-2093.68970089,0.00032429,2]
[421370791,1777515039000,-2933.38779691,0.00032429,2]
[421370797,1777515039000,-719.09707308,0.00032429,2]
[421370806,1777515039000,-549.96284373,0.00032429,2]
[421370801,1777515039000,-1381.09443239,0.00032429,2]
[421370803,1777515039000,-809.73955231,0.00032429,2]
[421370804,1777515039000,-1289.42495318,0.00032429,2]
[421370800,1777515039000,-435.6734742,0.00032429,2]
[421370808,1777515039000,-95.13932364,0.00032429,2]
[421370805,1777515039000,-1094.0,0.00032429,2]
[421370792,1777515039000,-2933.38779691,0.00032429,2]
[421370795,1777515039000,-79.61477603,0.00032429,2]
[421370785,1777515039000,-150.0,0.00032407,30]
[421370777,1777515039000,-150.0,0.00032242,7]
[421370787,1777515039000,-2933.38779691,0.00032429,2]
[421370807,1777515039000,-2838.24847327,0.00032429,2]
[421370772,1777515039000,-150.0,0.00031746,30]
[421370776,1777515039000,-150.0,0.00032076,7]
[421370773,1777515039000,-900.0,0.000318,11]
[421370780,1777515039000,-15958.0539,0.00032328,2]
[421370778,1777515039000,-556.0,0.00032264,30]
[421370774,1777515039000,-1900.0,0.000319,11]
[421370793,1777515039000,-2448.91395454,0.00032429,2]
[421370779,1777515039000,-1504.0,0.00032264,30]
[421370781,1777515039000,-2500.0,0.00032328,2]
[421370782,1777515039000,-154.71897706,0.00032329,2]
[421370788,1777515039000,-2933.38779691,0.00032429,2]
[421370790,1777515039000,-2933.38779691,0.00032429,2]
[421370783,1777515039000,-400.9444873,0.00032329,2]
[421370784,1777515039000,-1233.66451088,0.00032329,2]
[421370786,1777515039000,-150.0,0.00032407,7]
[421370775,1777515039000,-150.0,0.00031966,7]
[421370809,1777515039000,-1904.86067636,0.00032429,2]
[421370794,1777515039000,-484.47384237,0.00032429,2]
[421370814,1777515039000,-2187.60063176,0.00032429,2]
[421370826,1777515039000,-2933.38779691,0.00032429,2]
[421370834,1777515039000,-2933.38779691,0.00032429,2]
[421370831,1777515039000,-2933.38779691,0.00032429,2]
[421370829,1777515039000,-2933.38779691,0.00032429,2]
[421370836,1777515039000,-2933.38779691,0.00032429,2]
[421370835,1777515039000,-2933.38779691,0.00032429,2]
[421370839,1777515039000,-2933.38779691,0.00032429,2]
[421370837,1777515039000,-2933.38779691,0.00032429,2]
[421370838,1777515039000,-2933.38779691,0.00032429,2]
[421370843,1777515039000,-2933.38779691,0.00032429,2]
[421370848,1777515039000,-1235.55077285,0.00032429,2]
[421370841,1777515039000,-2933.38779691,0.00032429,2]
[421370844,1777515039000,-2933.38779691,0.00032429,2]
[421370845,1777515039000,-2933.38779691,0.00032429,2]
[421370847,1777515039000,-122.81711566,0.00032429,2]
[421370810,1777515039000,-254.18043806,0.00032429,2]
[421370846,1777515039000,-2810.57068125,0.00032429,2]
[421370830,1777515039000,-2933.38779691,0.00032429,2]
[421370840,1777515039000,-2933.38779691,0.00032429,2]
[421370832,1777515039000,-2933.38779691,0.00032429,2]
[421370833,1777515039000,-2933.38779691,0.00032429,2]
[421370812,1777515039000,-274.50867292,0.00032429,2]
[421370813,1777515039000,-745.78716515,0.00032429,2]
[421370811,1777515039000,-499.83800957,0.00032429,2]
[421370815,1777515039000,-2933.38779691,0.00032429,2]
[421370817,1777515039000,-2933.38779691,0.00032429,2]
[421370819,1777515039000,-2171.1665223,0.00032429,2]
[421370818,1777515039000,-2933.38779691,0.00032429,2]
[421370816,1777515039000,-2933.38779691,0.00032429,2]
[421370824,1777515039000,-2933.38779691,0.00032429,2]
[421370821,1777515039000,-249.87659446,0.00032429,2]
[421370823,1777515039000,-2656.76095003,0.00032429,2]
[421370820,1777515039000,-512.34468015,0.00032429,2]
[421370842,1777515039000,-2933.38779691,0.00032429,2]
[421370825,1777515039000,-2933.38779691,0.00032429,2]
[421370828,1777515039000,-2933.38779691,0.00032429,2]
[421370822,1777515039000,-276.62684688,0.00032429,2]
[421370827,1777515039000,-2933.38779691,0.00032429,2]
[421370869,1777515040000,-7542.99719204,0.00032429,2]
[421370864,1777515040000,-7542.99719204,0.00032429,2]
[421370867,1777515040000,-7542.99719204,0.00032429,2]
[421370865,1777515040000,-7542.99719204,0.00032429,2]
[421370868,1777515040000,-7542.99719204,0.00032429,2]
[421370863,1777515040000,-7542.99719204,0.00032429,2]
[421370866,1777515040000,-7542.99719204,0.00032429,2]
[421370861,1777515040000,-2933.38779691,0.00032429,2]
[421370858,1777515040000,-2933.38779691,0.00032429,2]
[421370862,1777515040000,-2933.38779691,0.00032429,2]
[421370849,1777515040000,-1099.45,0.00029168,10]
[421370859,1777515040000,-2933.38779691,0.00032429,2]
[421370854,1777515040000,-2933.38779691,0.00032429,2]
[421370855,1777515040000,-2933.38779691,0.00032429,2]
[421370856,1777515040000,-2933.38779691,0.00032429,2]
[421370852,1777515040000,-1697.83702406,0.00032429,2]
[421370853,1777515040000,-2933.38779691,0.00032429,2]
[421370851,1777515040000,-1378.0,0.00032429,30]
[421370850,1777515040000,-463.0,0.00032429,30]
[421370871,1777515040000,-7542.99719204,0.00032429,2]
[421370860,1777515040000,-2933.38779691,0.00032429,2]
[421370872,1777515040000,-7542.99719204,0.00032429,2]
[421370857,1777515040000,-2933.38779691,0.00032429,2]
[421370870,1777515040000,-7542.99719204,0.00032429,2]
[421370882,1777515040000,-500.0,0.00032429,2]
[421370892,1777515040000,-509.0,0.00033011,8]
[421370890,1777515040000,-839.0,0.00032991,5]
[421370884,1777515040000,-918.35,0.000325,7]
[421370893,1777515040000,-157.26858269,0.00033068,30]
[421370889,1777515040000,-1558.0,0.00032978,30]
[421370895,1777515040000,-151.5560771,0.00033068,7]
[421370886,1777515040000,-150.0,0.00032562,2]
[421370894,1777515040000,-153.69890442,0.00033068,7]
[421370888,1777515040000,-2900.0,0.000329,12]
[421370887,1777515040000,-150.0,0.00032738,7]
[421370891,1777515040000,-679.0,0.00032991,5]
[421370883,1777515040000,-1558.0,0.0003243,15]
[421370879,1777515040000,-500.0,0.00032429,2]